bitfinex-derivatives/quotes_ETHF0:USTF0_20250314
["timestamp","ask_amount","ask_price","bid_price","bid_amount"]
[1741962005017,5.14e-06,1899.7,1899.3,3.2078]
[1741962005222,5.14e-06,1899.7,1899.6,1.05293]
[1741962005534,1.05296,1899.6,1899.5,1.05295]
[1741962005825,5.14e-06,1899.7,1899.6,1.05293]
[1741962006122,5.14e-06,1899.7,1899.6,17.37753]
[1741962006626,5.14e-06,1899.7,1899.6,19.87753]
[1741962007019,5.14e-06,1899.7,1899.6,17.37753]
[1741962007922,5.14e-06,1899.7,1899.6,19.87753]
[1741962008122,5.14e-06,1899.7,1899.6,17.37753]
[1741962008326,5.14e-06,1899.7,1899.6,19.87753]
[1741962009228,5.14e-06,1899.7,1899.6,60.67753]
[1741962010433,11.4347,1900.5,1900.4,1.05249]
[1741962010629,7.5797,1901.1,1900.5,2.63109]
[1741962010928,11.0995,1901.0,1900.6,13.7144]
[1741962011229,1.05232,1900.7,1900.6,10.5066]
[1741962011726,2.63056,1900.9,1900.5,0.00790514]
[1741962011727,1.05238,1900.6,1900.5,0.00790514]
[1741962012026,11.0995,1900.6,1900.5,0.00790514]
[1741962012234,1.05235,1900.7,1900.6,1.05235]
[1741962012531,0.00790514,1900.8,1900.5,10.51450514]
[1741962012833,1.05233,1900.7,1900.6,1.05233]
[1741962013029,0.00790514,1900.8,1900.5,10.51450514]
[1741962013219,3.2078,1902.1,1900.7,3.2078]
[1741962013422,11.0995,1902.2,1902.1,1.05155]
[1741962013629,11.1874657,1902.2,1901.8,3.2078]
[1741962013926,11.0995,1902.2,1901.9,10.9756]
[1741962014129,12.15101,1902.2,1902.0,1.05158]
[1741962014331,11.10470013,1902.2,1902.1,1.05155]
[1741962014821,0.00520013,1902.2,1902.1,1.05155]
[1741962015020,11.229,1902.6,1902.1,12.02715]
[1741962015225,11.229,1902.6,1902.2,3.2078]
[1741962015534,11.229,1902.6,1902.5,1.05133]
[1741962015930,11.229,1902.6,1902.3,51.7756]
[1741962016130,1.05138,1902.4,1902.3,40.8]
[1741962016332,11.229,1902.6,1902.3,40.8]
[1741962016834,1.05136,1902.5,1902.3,41.85144]
[1741962017032,11.3602,1902.4,1902.3,1.05144]
[1741962017335,11.3602,1902.4,1902.3,12.08044]
[1741962017538,3.2078,1903.0,1902.6,1.05126]
[1741962017734,1.05126,1902.7,1902.4,3.2078]
[1741962017936,14.568,1902.8,1902.3,11.029]
[1741962018239,1.05125,1902.7,1902.5,1.0513]
[1741962018426,11.3602,1902.6,1902.5,1.0513]
[1741962018637,1.05133,1902.5,1902.3,15.38742]
[1741962018827,1.05138,1902.4,1902.2,4.25928]
[1741962019036,11.3602,1902.3,1902.2,4.25928]
[1741962020643,1.05152,1902.2,1902.0,15.28838]
[1741962020833,10.7711,1902.1,1902.0,11.029]
[1741962021034,10.7711,1902.1,1902.0,12.0806]
[1741962021240,10.7711,1902.1,1902.0,11.029]
[1741962021445,10.7711,1902.1,1902.0,12.0806]
[1741962021740,10.7711,1902.1,1901.9,1.05952514]
[1741962021943,11.82266,1902.1,1901.9,1.05952514]
[1741962022131,1.0516,1902.0,1901.9,0.00790514]
[1741962023042,10.7711,1902.1,1901.9,0.00790514]
[1741962023444,11.82269,1902.1,1901.9,1.05954514]
[1741962023844,10.7711,1902.1,1901.9,1.05954514]
[1741962024039,1.0516,1902.0,1901.9,0.00790514]
[1741962024235,4.2594,1902.0,1901.9,0.00790514]
[1741962024636,5.83684,1902.0,1901.5,1.05188]
[1741962024846,1.05181,1901.7,1901.5,1.05188]
[1741962025051,11.73345,1901.6,1901.4,4.25971]
[1741962025252,11.73345,1901.6,1901.4,1.05191]
[1741962025457,11.73345,1901.6,1901.2,13.7472]
[1741962025752,14.94125,1901.6,1901.5,1.05188]
[1741962026057,1.05196,1901.4,1901.3,1.05199]
[1741962026452,1.05199,1901.3,1901.2,0.00788415]
[1741962027654,10.6894352,1901.6,1901.5,1.05188]
[1741962027857,0.0078352,1901.6,1901.5,1.05188]
[1741962028358,1.0519,1901.5,1901.4,1.05191]
[1741962028653,1.05194,1901.4,1901.3,19.17415]
[1741962028855,0.0078352,1901.6,1901.5,1.05188]
[1741962029056,1.0596652,1901.6,1901.5,1.05188]
[1741962029254,0.0078352,1901.6,1901.5,1.05188]
[1741962030358,0.0078352,1901.6,1901.5,4.25968]
[1741962030654,4.3692,1902.1,1901.6,2.62948]
[1741962030655,1.05158,1902.1,1901.6,2.62948]
[1741962030950,11.1984,1902.0,1901.7,14.365]
[1741962031156,1.05171,1901.8,1901.7,12.20894]
[1741962031358,14.4062,1902.0,1901.5,3.2078]
[1741962031552,1.05183,1901.6,1901.5,4.25966]
[1741962031748,1.05183,1901.6,1901.5,45.05966]
[1741962032360,11.1984,1901.7,1901.5,44.0078]
[1741962032551,1.05183,1901.6,1901.5,45.05963]
[1741962032858,1.05183,1901.6,1901.5,44.0078]
[1741962033065,1.05183,1901.6,1901.5,40.8]
[1741962033256,1.05194,1901.4,1901.3,3.2078]
[1741962033556,11.3604,1901.5,1901.3,3.2078]
[1741962033760,1.05194,1901.4,1901.3,56.53845]
[1741962034061,1.05194,1901.4,1901.3,56.53849]
[1741962034557,3.2078,1902.0,1901.3,57.9865]
[1741962034752,11.3604,1901.8,1901.7,1.05177]
[1741962034947,1.05177,1901.7,1901.6,12.53053]
[1741962035152,12.41213,1901.8,1901.7,1.05177]
[1741962035349,11.3604,1901.8,1901.7,1.05177]
[1741962035554,3.2078,1902.2,1901.7,4.25957]
[1741962035851,11.85205,1902.1,1902.0,1.05156]
[1741962036154,3.2078,1902.2,1902.1,1.05155]
[1741962036357,1.05157,1902.1,1902.0,1.05159]
[1741962036557,1.05157,1902.1,1901.9,10.6646]
[1741962036558,1.0516,1902.0,1901.9,10.6646]
[1741962036755,10.8005,1902.1,1901.7,8.8392]
[1741962036956,3.2078,1902.2,1901.7,19.5038]
[1741962037160,10.8005,1902.1,1901.7,22.13323]
[1741962037463,10.8005,1902.1,1901.7,19.5038]
[1741962037647,1.05171,1901.8,1901.7,3.2078]
[1741962037852,1.05183,1901.6,1901.5,14.92423]
[1741962038053,11.85231,1901.7,1901.6,1.05183]
[1741962038252,1.05183,1901.6,1901.5,13.8724]
[1741962038459,10.8005,1901.7,1901.5,13.8724]
[1741962038460,11.8523,1901.7,1901.5,13.8724]
[1741962038660,10.8005,1901.7,1901.5,13.8724]
[1741962038863,1.05183,1901.6,1901.5,14.92423]
[1741962039055,1.05183,1901.6,1901.5,10.6646]
[1741962039452,11.85231,1901.7,1901.6,1.05183]
[1741962039857,10.8005,1901.7,1901.6,1.05183]
[1741962040163,1.05173,1901.8,1901.7,1.05173]
[1741962040559,13.31976,1902.0,1901.5,10.6646]
[1741962040956,1.0518,1901.7,1901.6,1.0518]
[1741962041154,1.05183,1901.6,1901.5,10.6646]
[1741962041356,11.86893,1901.6,1901.5,11.71648]
[1741962041657,10.2571,1902.1,1901.7,1.05176]
[1741962041658,1.05176,1901.8,1901.7,1.05176]
[1741962041959,1.05179,1901.7,1901.6,1.05179]
[1741962042360,1.05175,1901.8,1901.7,1.05175]
[1741962042763,1.05178,1901.7,1901.6,1.05178]
[1741962043166,1.05183,1901.6,1901.5,10.6646]
[1741962043355,11.86893,1901.6,1901.5,10.6646]
[1741962043560,11.86893,1901.6,1901.5,11.71648]
[1741962043966,11.86893,1901.6,1901.5,10.6646]
[1741962044162,10.8171,1901.6,1901.4,10.0019]
[1741962044364,1.05188,1901.5,1901.4,22.52264]
[1741962044864,5.83696,1901.9,1901.4,21.4707]
[1741962045066,1.05188,1901.5,1901.4,21.4707]
[1741962045268,1.05188,1901.5,1901.4,22.52264]
[1741962045568,1.05166,1902.0,1901.9,1.05164]
[1741962045769,1.05168,1901.9,1901.8,1.05167]
[1741962046061,10.7586,1902.0,1901.9,1.05166]
[1741962046256,10.7586,1902.0,1901.7,12.52053]
[1741962046459,13.38764,1902.0,1901.6,3.2078]
[1741962046661,1.05177,1901.7,1901.6,4.25963]
[1741962046969,3.2078,1901.7,1901.3,40.8]
[1741962047172,13.38825,1901.6,1901.2,0.00788415]
[1741962047463,1.05199,1901.3,1901.2,0.00788415]
[1741962047668,4.25979,1901.3,1901.2,1e-08]
[1741962047872,6.84745719,1901.3,1901.2,1e-08]
[1741962048065,1.05243,1900.5,1900.4,11.0554]
[1741962048368,9.1368,1900.6,1900.0,3.2078]
[1741962048667,31.46696,1900.9,1900.2,5.83925]
[1741962048863,1.05245,1900.5,1900.3,24.36022]
[1741962049071,3.2078,1900.6,1900.0,3.2078]
[1741962049260,12.47442,1900.4,1900.2,0.00788415]
[1741962049461,11.4219,1900.4,1900.3,1.05254]
[1741962049657,11.4219,1900.4,1900.2,4.26826415]
[1741962049857,11.4219,1900.4,1900.3,11.0554]
[1741962050368,12.47439,1900.4,1900.3,11.0554]
[1741962050759,11.4219,1900.4,1900.2,0.00788415]
[1741962050960,1.05254,1900.3,1900.2,0.00788415]
[1741962051668,1.05284,1899.8,1899.6,1.05292]
[1741962051872,1.05288,1899.7,1899.6,10.8805]
[1741962052061,11.1155,1899.7,1899.6,10.8805]
[1741962052261,12.16838,1899.7,1899.6,10.8805]
[1741962053367,1.05293,1899.6,1899.5,0.00788415]
[1741962053674,1.05318,1899.2,1898.9,41.85329]
[1741962053868,1.05318,1899.2,1899.1,10.5196]
[1741962054366,1.05313,1899.3,1899.1,10.5196]
[1741962054569,1.05308,1899.4,1899.1,11.57278]
[1741962054764,1.0531,1899.3,1899.1,14.78058]
[1741962054963,1.0531,1899.3,1899.2,10.5196]
[1741962055374,11.7856,1899.3,1899.2,10.5196]
[1741962055669,1.05321,1899.1,1899.0,0.00788415]
[1741962056173,1.05321,1899.1,1899.0,10.52748415]
[1741962056574,1.05321,1899.1,1899.0,0.00788415]
[1741962056769,2.63335,1898.9,1898.2,10.6963]
[1741962056965,3.2078,1898.8,1898.2,10.6963]
[1741962057165,1.05349,1898.6,1898.3,3.2078]
[1741962057375,14.6359,1898.8,1898.4,40.8]
[1741962057671,14.6359,1898.8,1898.4,51.4963]
[1741962058173,14.6359,1898.8,1898.4,51.50418415]
[1741962058373,11.4281,1898.8,1898.6,3.2078]
[1741962058679,1.05328,1899.0,1898.7,1.05343]
[1741962058971,11.4281,1899.1,1898.8,3.2078]
[1741962059161,11.4281,1899.1,1898.9,10.6963]
[1741962059364,1.05316,1899.2,1898.9,11.7496]
[1741962059663,3.2078,1899.3,1898.9,11.7496]
[1741962059664,1.05301,1899.5,1899.0,3.2078]
[1741962059864,1.05299,1899.5,1899.1,10.9833]
[1741962060068,10.4689,1899.6,1899.3,3.2078]
[1741962060270,10.4689,1899.6,1899.3,4.2609]
[1741962060776,10.4689,1899.6,1899.3,54.9911]
[1741962061179,10.4689,1899.6,1899.3,51.7833]
[1741962061365,1.06092415,1899.4,1899.3,51.7833]
[1741962061565,1.06092415,1899.4,1899.3,40.8]
[1741962061872,8.34831415,1899.4,1898.8,3.2078]
[1741962062071,1.05343,1898.7,1898.6,3.2078]
[1741962062370,2.63303,1899.1,1898.6,3.2078]
[1741962062572,1.05354,1898.5,1898.4,0.00788415]
[1741962062778,14.2664,1899.0,1898.4,11.26068415]
[1741962062979,11.0586,1898.8,1898.4,14.46848415]
[1741962063281,1.05354,1898.5,1898.4,11.26068415]
[1741962063471,1.05354,1898.5,1898.4,40.80788415]
[1741962063670,1.05354,1898.5,1898.0,14.4606]
[1741962063671,1.05376,1898.1,1898.0,14.4606]
[1741962063975,1.05376,1898.1,1898.0,3.2078]
[1741962064375,11.0586,1898.4,1898.0,3.2078]
[1741962064569,1.05382,1898.0,1897.9,40.8]
[1741962064976,1.0541,1897.5,1897.4,3.2078]
[1741962065272,3.2078,1897.6,1897.1,6.9545]
[1741962065478,11.0586,1897.4,1897.1,6.9545]
[1741962065667,1.05421,1897.3,1897.1,6.9545]
[1741962065867,1.05421,1897.3,1897.2,0.00790535]
[1741962068275,4.26186,1897.6,1897.2,0.00790535]
[1741962068577,6.719,1898.0,1897.3,3.2078]
[1741962068783,1.05396,1897.8,1897.6,1.05399]
[1741962068977,1.05396,1897.8,1897.7,11.2457]
[1741962069181,1.05404,1897.6,1897.5,3.2078]
[1741962070075,1.05418,1897.4,1897.3,3.2078]
[1741962070385,1.05421,1897.3,1897.2,0.00790535]
[1741962070584,4.26201,1897.3,1897.2,0.00790535]
[1741962071289,6.76201,1897.3,1897.2,0.00790535]
[1741962071577,4.26201,1897.3,1897.2,0.00790535]
[1741962071778,7.56,1897.4,1897.2,1.06214535]
[1741962071974,1.05421,1897.3,1897.2,0.00790535]
[1741962072577,1.05421,1897.3,1897.2,40.80790535]
[1741962073678,1.05454,1896.7,1896.6,3.2078]
[1741962073877,5.84371,1897.1,1896.6,3.2078]
[1741962074075,1.05453,1896.8,1896.7,10.6095]
[1741962074384,6.8114,1897.2,1896.7,10.6095]
[1741962074683,3.298,1897.4,1896.8,44.0078]
[1741962074885,1.05439,1897.0,1896.9,10.9321]
[1741962075383,0.00790535,1897.1,1896.8,40.80530558]
[1741962075582,1.05443,1896.9,1896.8,0.00530558]
[1741962076086,0.00790535,1897.1,1896.8,10.93740558]
[1741962076288,1.05443,1896.9,1896.8,0.00530558]
[1741962077685,3.30590535,1897.1,1896.8,0.00530558]
[1741962077885,0.00790535,1897.1,1896.8,0.00530558]
[1741962078080,1.05443,1896.9,1896.8,0.00530558]
[1741962078779,4.35243,1896.9,1896.8,0.00530558]
[1741962078982,6.85243,1896.9,1896.8,5.58e-06]
[1741962079178,13.55493,1896.9,1896.8,5.58e-06]
[1741962080084,4.35243,1896.9,1896.8,5.58e-06]
[1741962080887,0.00790535,1897.1,1896.8,5.58e-06]
[1741962081198,1.06225535,1897.1,1897.0,1.05438]
[1741962081488,1.05438,1897.0,1896.9,11.0242]
[1741962081693,1.05443,1896.9,1896.8,5.58e-06]
[1741962082190,11.63043,1896.9,1896.8,5.58e-06]
[1741962082690,14.13043,1896.9,1896.8,5.58e-06]
[1741962084188,11.63043,1896.9,1896.8,1.05449558]
[1741962084392,14.83823,1896.9,1896.8,5.58e-06]
[1741962085688,0.00790535,1897.1,1896.8,5.58e-06]
[1741962085994,1.05443,1896.9,1896.8,1.05449558]
[1741962086292,11.33190535,1897.1,1896.8,5.58e-06]
[1741962086484,0.00790535,1897.1,1896.9,1.05443]
[1741962086682,0.00790535,1897.1,1896.8,5.25140558]
[1741962086883,1.05442,1897.0,1896.9,1.05443]
[1741962087094,0.00790535,1897.1,1897.0,1.05438]
[1741962087384,0.00790535,1897.1,1897.0,7.70818]
[1741962087587,1.06222535,1897.1,1897.0,7.70818]
[1741962087790,1.06222535,1897.1,1897.0,6.6538]
[1741962088095,0.00790535,1897.1,1896.8,5.25140558]
[1741962088283,1.06225535,1897.1,1897.0,1.05438]
[1741962088490,0.00790535,1897.1,1897.0,1.05438]
[1741962090192,1.05401,1897.7,1897.6,1.05402]
[1741962090392,1.05406,1897.6,1897.5,1.05407]
[1741962090693,23.675,1898.2,1897.5,2.63525]
[1741962090694,3.2078,1898.1,1897.5,2.63525]
[1741962090884,1.0538,1898.1,1897.9,1.05383]
[1741962091086,10.5789,1898.3,1898.0,1.05379]
[1741962091288,1.05376,1898.2,1898.0,40.8]
[1741962091492,1.05376,1898.1,1898.0,40.80790535]
[1741962091799,11.63266,1898.1,1898.0,40.80790535]
[1741962091990,11.63266,1898.1,1898.0,0.00790535]
[1741962093487,1.05374,1898.2,1898.0,0.00790535]
[1741962093691,1.05376,1898.1,1898.0,1.06171535]
[1741962093993,1.05376,1898.1,1898.0,1.06172535]
[1741962094195,10.80100535,1898.3,1898.0,0.00790535]
[1741962094588,1.05372,1898.2,1898.1,1.05375]
[1741962094790,1.06159535,1898.3,1898.2,1.05371]
[1741962094989,0.00790535,1898.3,1898.2,1.05371]
[1741962095190,1.06155535,1898.3,1898.1,1.05372]
[1741962095385,1.06155535,1898.3,1898.2,1.05371]
[1741962095600,0.00790535,1898.3,1898.2,1.05371]
[1741962096006,3.2078,1898.8,1898.2,3.2078]
[1741962096297,3.2078,1898.8,1898.6,1.05349]
[1741962096298,1.05347,1898.7,1898.6,1.05349]
[1741962096599,23.675,1898.9,1898.4,12.91726]
[1741962096899,6.5018,1899.4,1898.9,1.05328]
[1741962097094,1.05328,1899.0,1898.8,1.05332]
[1741962097295,1.05327,1899.0,1898.6,3.2078]
[1741962097492,10.58540535,1899.3,1898.8,3.2078]
[1741962097688,1.05333,1898.9,1898.8,1.05337]
[1741962097997,1.05338,1898.8,1898.7,0.00790535]
[1741962098390,4.26118,1898.8,1898.7,0.00790535]
[1741962100393,3.2078,1899.0,1898.7,0.00790535]
[1741962100598,5.978,1899.1,1898.7,3.21570535]
[1741962100795,7.03125,1899.1,1899.0,1.05327]
[1741962100990,3.2078,1899.2,1898.7,3.21570535]
[1741962101198,4.26099,1899.2,1898.7,5.84922535]
[1741962101397,3.2078,1899.2,1898.7,3.21570535]
[1741962101689,0.00790535,1899.3,1898.7,3.21570535]
[1741962101893,1.05328,1899.0,1898.7,3.21570535]
[1741962102101,1.05328,1899.0,1898.8,1.05338]
[1741962102297,11.5671,1899.2,1898.9,1.05329]
[1741962102605,11.5671,1899.2,1898.7,3.21570535]
[1741962102796,1.05323,1899.1,1898.7,3.21570535]
[1741962102995,12.62029,1899.2,1899.0,1.05327]
[1741962103298,1.05319,1899.2,1899.0,1.05324]
[1741962103498,1.05318,1899.2,1898.7,3.21570535]
[1741962103710,1.05318,1899.2,1899.0,1.05323]
[1741962104004,1.05326,1899.1,1898.9,1.05329]
[1741962104208,1.0533,1899.0,1898.8,1.05335]
[1741962104406,1.0533,1899.0,1898.8,1.05333]
[1741962104708,1.0533,1899.0,1898.8,41.85333]
[1741962104905,1.05332,1898.9,1898.8,40.8]
[1741962105101,1.05338,1898.8,1898.7,3.21570535]
[1741962105707,1.05338,1898.8,1898.7,4.26913535]
[1741962105898,1.05336,1898.9,1898.7,3.21570535]
[1741962106104,10.6131,1899.1,1898.9,1.05332]
[1741962106304,10.6131,1899.1,1898.7,3.21570535]
[1741962106508,1.05338,1898.8,1898.7,3.21570535]
[1741962106803,1.05338,1898.8,1898.7,4.26913535]
[1741962107002,1.05335,1898.9,1898.7,3.21570535]
[1741962107310,13.24614,1899.1,1898.7,3.21570535]
[1741962107311,1.05338,1898.8,1898.7,3.21570535]
[1741962107608,1.05337,1898.9,1898.7,4.26908535]
[1741962107912,0.00790535,1899.3,1898.7,3.21570535]
[1741962108113,10.6131,1899.1,1898.7,3.21570535]
[1741962108306,1.05332,1898.9,1898.8,1.05334]
[1741962108799,10.6131,1899.1,1898.7,3.21570535]
[1741962109000,1.05335,1898.9,1898.8,1.05336]
[1741962109198,1.05337,1898.9,1898.7,3.21570535]
[1741962109413,1.05337,1898.9,1898.8,1.05336]
[1741962109709,1.05338,1898.8,1898.7,0.00790535]
[1741962110410,1.05338,1898.8,1898.7,1.06133535]
[1741962110708,1.05338,1898.8,1898.7,0.00790535]
[1741962111512,11.4722,1898.9,1898.7,0.00790535]
[1741962111809,1.05338,1898.8,1898.7,0.00790535]
[1741962112511,4.26118,1898.8,1898.7,0.00790535]
[1741962112914,1.05338,1898.8,1898.7,0.00790535]
[1741962114412,11.4722,1898.9,1898.7,0.00790535]
[1741962114605,1.05338,1898.8,1898.7,0.00790535]
[1741962115600,11.4722,1898.9,1898.8,1.05338]
[1741962115810,0.00790535,1899.3,1898.7,3.21570535]
[1741962116011,1.05323,1899.1,1899.0,1.05321]
[1741962116210,1.05327,1899.0,1898.9,8.27959]
[1741962116404,1.05323,1899.1,1899.0,1.05322]
[1741962116715,1.05323,1899.1,1899.0,1.05327]
[1741962117313,1.05321,1899.2,1899.1,1.05319]
[1741962117515,1.05321,1899.2,1899.1,4.26099]
[1741962117813,11.59740535,1899.3,1899.1,4.26096]
[1741962118003,1.05315,1899.2,1899.1,1.05316]
[1741962118406,11.59740535,1899.3,1898.9,7.2263]
[1741962118609,1.05326,1899.1,1899.0,1.05325]
[1741962119106,1.05323,1899.1,1899.0,1.05321]
[1741962119307,1.05319,1899.2,1899.1,1.05318]
[1741962119503,1.05319,1899.2,1899.1,1.05321]
[1741962120014,1.05321,1899.2,1899.1,1.05319]
[1741962120212,11.59740535,1899.3,1899.2,1.05315]
[1741962120411,1.06100535,1899.3,1899.2,1.05315]
[1741962120720,0.00790535,1899.3,1899.2,4.26095]
[1741962120905,0.00790535,1899.3,1899.0,3.2078]
[1741962121106,0.00790535,1899.3,1899.2,1.05315]
[1741962121312,0.00790535,1899.3,1899.2,4.26095]
[1741962122317,2.63195,1899.9,1899.2,4.26095]
[1741962122510,31.2327,1900.4,1899.8,3.2078]
[1741962122808,31.2327,1900.4,1899.9,11.3475]
[1741962122809,1.05271,1900.0,1899.9,11.3475]
[1741962123019,1.05271,1900.0,1899.9,40.8]
[1741962123206,11.281,1900.2,1899.9,40.8]
[1741962123608,11.28890535,1900.2,1900.0,10.7437]
[1741962124112,0.00790535,1900.2,1900.1,1.05266]
[1741962124616,0.00790535,1900.2,1900.0,13.9515]
[1741962124617,1.05266,1900.1,1900.0,13.9515]
[1741962124808,12.58576,1900.1,1900.0,13.9515]
[1741962125006,1.06054535,1900.2,1900.1,1.05266]
[1741962125313,1.05266,1900.1,1900.0,15.00418]
[1741962125519,3.2078,1900.5,1900.0,13.9515]
[1741962125704,1.05251,1900.4,1900.3,1.05253]
[1741962125909,11.5331,1900.8,1900.3,10.7437]
[1741962125910,11.5331,1900.6,1900.3,10.7437]
[1741962126207,11.5331,1900.6,1900.5,1.05243]
[1741962126402,12.58548,1900.6,1900.5,1.05243]
[1741962126712,6.8138,1901.3,1900.5,16.9098]
[1741962126919,2.62957,1901.6,1901.1,1.05208]
[1741962127218,1.05204,1901.3,1901.1,1.05208]
[1741962127417,1.05204,1901.3,1901.2,11.1278]
[1741962127717,14.29710535,1901.5,1901.4,1.05194]
[1741962127921,1.05199,1901.3,1901.2,11.13570535]
[1741962128217,11.08930535,1901.5,1901.3,1.05198]
[1741962128405,12.14118535,1901.5,1901.4,11.1278]
[1741962128809,1.05199,1901.3,1901.2,0.00790535]
[1741962129009,1.05199,1901.3,1901.2,11.13570535]
[1741962129511,1.05199,1901.3,1901.2,0.00790535]
[1741962130210,1.05212,1901.1,1900.7,3.2078]
[1741962130412,1.05212,1901.1,1900.8,5.5883]
[1741962130714,1.0521,1901.1,1900.9,1.05218]
[1741962131017,1.0521,1901.1,1900.9,1.05216]
[1741962131219,1.05214,1901.1,1900.9,1.05219]
[1741962131410,11.282,1901.2,1901.0,10.7041]
[1741962131611,12.33408,1901.2,1901.0,11.75622]
[1741962131913,11.282,1901.2,1901.1,1.0521]
[1741962132221,0.00790535,1901.5,1901.4,1.05194]
[1741962132413,1.05978535,1901.5,1901.4,1.05194]
[1741962132612,0.00790535,1901.5,1901.2,13.703]
[1741962132921,0.00790535,1901.5,1901.4,1.05194]
[1741962133109,1.05982535,1901.5,1901.3,1.05196]
[1741962133419,1.05978535,1901.5,1901.4,51.2952]
[1741962133910,5.71570535,1901.5,1901.0,3.2078]
[1741962134213,1.05214,1901.1,1901.0,1.05213]
[1741962134411,1.0521,1901.1,1901.0,1.05213]
[1741962134607,1.05216,1901.0,1900.9,10.4952]
[1741962135009,1.05221,1900.9,1900.8,0.00790535]
[1741962135717,12.09111,1900.9,1900.8,0.00790535]
[1741962135914,1.05249,1900.4,1900.3,3.2078]
[1741962136214,1.05254,1900.3,1900.2,11.5602]
[1741962136409,11.0389,1900.3,1900.2,11.5602]
[1741962136608,14.4419,1901.0,1900.6,1.05234]
[1741962136810,1.05232,1900.7,1900.6,1.05234]
[1741962137016,14.2467,1900.9,1900.4,3.2078]
[1741962137205,0.00790535,1900.8,1900.7,1.05232]
[1741962138012,1.06017535,1900.8,1900.7,1.05232]
[1741962138213,0.00790535,1900.8,1900.7,1.05232]
[1741962138422,0.00790535,1900.8,1900.6,16.97434]
[1741962138716,1.05232,1900.7,1900.6,12.7142]
[1741962138921,12.58952,1900.7,1900.6,12.7142]
[1741962139115,12.58952,1900.7,1900.6,13.76658]
[1741962139314,12.58952,1900.7,1900.6,12.7142]
[1741962139514,1.05238,1900.6,1900.5,0.00790535]
[1741962140423,18.36558,1900.6,1900.5,5.35e-06]
[1741962140625,15.86558,1900.6,1900.5,5.35e-06]
[1741962142025,12.58958,1900.6,1900.5,5.35e-06]
[1741962142522,15.08958,1900.6,1900.5,5.35e-06]
[1741962143017,15.08958,1900.6,1899.7,40.8]
[1741962143018,24.47120083,1900.6,1899.7,40.8]
[1741962143227,24.47120083,1900.6,1899.3,3.2078]
[1741962143228,1.05304,1899.4,1899.3,3.2078]
[1741962143418,9.1149,1899.8,1899.3,3.2078]
[1741962143614,9.1149,1899.8,1899.1,12.7773]
[1741962143615,10.9,1899.5,1899.1,12.7773]
[1741962143812,11.95303,1899.5,1899.3,1.05308]
[1741962144019,3.2078,1899.7,1899.1,15.9851]
[1741962144319,3.275,1900.1,1899.5,4.26079]
[1741962144526,14.175,1900.1,1899.7,1.05285]
[1741962144716,17.3828,1900.1,1899.7,1.05286]
[1741962144917,20.01451,1900.1,1899.6,13.18491]
[1741962145226,1.05284,1899.8,1899.6,12.132]
[1741962145411,1.05288,1899.7,1899.6,13.18491]
[1741962145615,0.00790535,1899.9,1899.6,12.132]
[1741962146017,1.05288,1899.7,1899.6,12.132]
[1741962146222,5.83986,1899.8,1899.3,3.2078]
[1741962146428,11.95317,1899.6,1899.4,1.05301]
[1741962146630,10.9002,1899.6,1899.5,1.05299]
[1741962146818,3.2078,1899.8,1899.3,3.2078]
[1741962147119,1.05301,1899.5,1899.3,4.26085]
[1741962147320,1.0529,1899.7,1899.3,3.2078]
[1741962147517,1.05295,1899.6,1899.3,3.2078]
[1741962147713,11.3297,1899.7,1899.2,0.00790535]
[1741962147919,11.3297,1899.5,1899.2,0.00790535]
[1741962148115,1.0531,1899.3,1899.2,0.00790535]
[1741962148324,1.0531,1899.3,1899.2,40.80790535]
[1741962148821,1.0531,1899.3,1899.2,0.00790535]
[1741962150215,1.05332,1898.9,1898.8,5.4348]
[1741962150625,1.05332,1898.9,1898.8,47.28818]
[1741962150819,3.2078,1899.4,1898.8,46.2348]
[1741962151013,1.05329,1899.0,1898.8,46.2348]
[1741962151214,10.4525,1899.2,1898.8,46.2348]
[1741962151418,11.50568,1899.2,1899.0,1.05324]
[1741962151618,10.4525,1899.2,1899.0,1.05324]
[1741962151822,10.4525,1899.2,1898.8,46.2348]
[1741962152330,10.4525,1899.2,1899.1,1.05321]
[1741962152527,10.4525,1899.2,1898.9,11.1894]
[1741962152824,11.50568,1899.2,1898.9,11.1894]
[1741962153133,3.275,1899.6,1899.2,1.05311]
[1741962153431,1.05304,1899.4,1899.3,11.1894]
[1741962153628,10.4525,1899.5,1899.0,7.88095]
[1741962153629,1.05321,1899.2,1899.0,7.88095]
[1741962153833,1.05321,1899.2,1899.1,10.9456]
[1741962155230,1.05332,1898.9,1898.8,46.2348]
[1741962155424,1.05332,1898.9,1898.8,57.1804]
[1741962155624,1.0533,1899.0,1898.8,58.23378]
[1741962155825,3.2078,1899.4,1899.0,1.05327]
[1741962156026,1.05315,1899.2,1899.1,10.9456]
[1741962156231,5.84069,1899.2,1898.8,46.2348]
[1741962156422,1.05332,1898.9,1898.8,58.23378]
[1741962156623,11.2331,1899.1,1898.9,1.0533]
[1741962156825,12.28633,1899.1,1899.0,10.5689]
[1741962157021,1.05318,1899.2,1899.0,11.62212]
[1741962157227,11.3223,1899.3,1899.1,1.0532]
[1741962157530,11.3223,1899.3,1899.2,10.5689]
[1741962157730,11.3223,1899.3,1899.2,11.62205]
[1741962157923,12.3754,1899.3,1899.2,10.5689]
[1741962158332,1.05321,1899.1,1899.0,6.9369]
[1741962158528,1.0532,1899.2,1899.0,17.5058]
[1741962158830,1.05317,1899.2,1899.0,17.5058]
[1741962159030,1.05317,1899.2,1899.1,1.05321]
[1741962159221,1.05321,1899.1,1899.0,17.5058]
[1741962159423,11.3223,1899.3,1898.8,47.28816]
[1741962159424,13.95506,1899.3,1898.8,47.28816]
[1741962159633,11.3223,1899.3,1899.1,1.05319]
[1741962159828,12.3754,1899.3,1899.2,11.5075]